bitfinex/quotes_BTCUSD_20240831
["timestamp","ask_amount","ask_price","bid_price","bid_amount"]
[1725067688261,0.02640147,59424.0,59421.0,0.00922118]
[1725067689335,0.02740147,59424.0,59421.0,0.00922118]
[1725067689539,0.02640147,59424.0,59421.0,0.00922118]
[1725067689954,0.02740147,59424.0,59421.0,0.02222118]
[1725067690156,0.02840147,59424.0,59421.0,0.02222118]
[1725067690592,0.02740147,59424.0,59421.0,0.02222118]
[1725067691012,0.02840147,59424.0,59421.0,0.03422118]
[1725067692745,0.14619847,59424.0,59421.0,0.03422118]
[1725067694338,0.02840147,59424.0,59423.0,0.21204362]
[1725067694593,0.02840147,59424.0,59423.0,0.44764262]
[1725067694807,0.002,59424.0,59423.0,0.43831699]
[1725067695016,0.002,59424.0,59423.0,0.81211266]
[1725067695238,0.002,59424.0,59423.0,0.43824903]
[1725067695444,0.001,59424.0,59423.0,0.12701079]
[1725067695654,0.11779,59428.0,59423.0,0.12701079]
[1725067695867,0.235571,59430.0,59425.0,0.05042606]
[1725067696104,0.117788,59429.0,59424.0,0.117796]
[1725067696303,0.02639728,59427.0,59426.0,0.00919771]
[1725067696627,0.02639728,59427.0,59424.0,0.117796]
[1725067696825,0.02639728,59427.0,59426.0,0.00919771]
[1725067697084,0.02639728,59427.0,59425.0,0.00920241]
[1725067697313,0.02639728,59427.0,59426.0,0.53913533]
[1725067697558,0.02739728,59427.0,59426.0,0.78372233]
[1725067697742,0.001,59427.0,59426.0,0.85936149]
[1725067697989,0.02639646,59427.0,59426.0,0.85036149]
[1725067698273,0.02639646,59427.0,59426.0,1.22414283]
[1725067698499,0.02639646,59427.0,59426.0,0.77472233]
[1725067698723,0.02839646,59427.0,59426.0,0.78872233]
[1725067699833,0.02839646,59427.0,59426.0,1.74808549]
[1725067700055,0.02839646,59427.0,59426.0,1.68444633]
[1725067700264,1e-08,59427.0,59426.0,1.92003333]
[1725067700470,0.02639325,59427.0,59426.0,1.93403333]
[1725067700941,0.02639325,59427.0,59426.0,1.92003333]
[1725067701126,0.02639324,59427.0,59426.0,2.05731166]
[1725067701355,0.02639324,59427.0,59426.0,1.93403333]
[1725067701582,0.02639324,59427.0,59426.0,1.92003333]
[1725067701767,0.02639324,59427.0,59426.0,1.90603333]
[1725067702043,0.02639324,59427.0,59426.0,1.93403333]
[1725067703066,0.02721224,59427.0,59426.0,1.93403333]
[1725067703716,0.02721224,59427.0,59426.0,1.93393961]
[1725067704348,0.000819,59427.0,59426.0,1.93393961]
[1725067705133,0.000819,59427.0,59426.0,1.6167616]
[1725067705339,0.000819,59427.0,59426.0,1.33532994]
[1725067705547,0.000819,59427.0,59426.0,1.32467633]
[1725067706430,0.000819,59427.0,59426.0,1.37338146]
[1725067706634,0.000819,59427.0,59426.0,1.74710684]
[1725067707370,0.000819,59427.0,59426.0,1.35938146]
[1725067707573,0.02721102,59427.0,59426.0,1.38538146]
[1725067708200,0.02721102,59427.0,59426.0,1.38738146]
[1725067708548,0.02721102,59427.0,59426.0,1.38538146]
[1725067708958,0.02721102,59427.0,59426.0,1.38738146]
[1725067709381,0.02721102,59427.0,59426.0,1.38538146]
[1725067709985,0.02721102,59427.0,59426.0,1.38738146]
[1725067710382,0.000819,59427.0,59426.0,1.38738146]
[1725067710844,0.000819,59427.0,59426.0,1.38538146]
[1725067711473,0.000819,59427.0,59426.0,1.38738146]
[1725067711679,0.000819,59427.0,59426.0,1.38538146]
[1725067712069,0.000819,59427.0,59426.0,1.38738146]
[1725067713122,0.000819,59427.0,59426.0,1.38538146]
[1725067713585,0.02721147,59427.0,59426.0,1.38538146]
[1725067714207,0.02721147,59427.0,59426.0,1.38738146]
[1725067714622,0.02721147,59427.0,59426.0,1.38538146]
[1725067714852,0.1461,59447.0,59444.0,0.235512]
[1725067715063,0.1461,59447.0,59446.0,0.117753]
[1725067715480,0.17249044,59447.0,59446.0,0.117753]
[1725067715683,0.17249044,59447.0,59446.0,0.12685688]
[1725067715881,0.07695152,59450.0,59446.0,0.12685688]
[1725067716190,0.17695152,59450.0,59446.0,0.12685688]
[1725067717199,0.17695152,59450.0,59446.0,0.008]
[1725067717399,0.19469752,59450.0,59447.0,0.01137282]
[1725067717604,0.1,59449.0,59447.0,0.01137282]
[1725067717815,0.217748,59449.0,59447.0,0.01137282]
[1725067718020,0.1,59449.0,59447.0,0.01137282]
[1725067718622,0.217748,59449.0,59447.0,0.01137282]
[1725067718892,0.1461,59448.0,59447.0,0.008]
[1725067719143,0.834847,59448.0,59447.0,0.008]
[1725067719371,0.481599,59448.0,59447.0,0.01937282]
[1725067719579,0.599348,59448.0,59447.0,0.017]
[1725067719785,1.004147,59448.0,59447.0,0.017]
[1725067720018,1.004147,59448.0,59447.0,0.009]
[1725067720230,1.004147,59448.0,59447.0,0.02]
[1725067720432,1.03053759,59448.0,59447.0,0.02]
[1725067720861,1.28903659,59448.0,59447.0,0.011]
[1725067721319,1.52453559,59448.0,59447.0,0.021]
[1725067721953,6.12232459,59448.0,59447.0,0.011]
[1725067722187,5.19127431,59448.0,59447.0,0.011]
[1725067722626,5.12127431,59448.0,59447.0,0.011]
[1725067722837,0.117785,59430.0,59429.0,0.4692]
[1725067723056,0.11779,59428.0,59423.0,0.16895233]
[1725067723559,0.11779,59428.0,59424.0,0.117797]
[1725067723796,0.14418453,59428.0,59424.0,0.16805053]
[1725067724685,0.11779,59428.0,59424.0,0.16805053]
[1725067724863,0.11779,59428.0,59425.0,0.01152764]
[1725067725974,0.11779,59428.0,59425.0,0.06178117]
[1725067726192,0.11779,59428.0,59425.0,0.07578117]
[1725067726645,0.11779,59428.0,59425.0,0.08978117]
[1725067726880,0.00590598,59448.0,59441.0,0.471048]
[1725067727093,0.50540786,59446.0,59438.0,0.235538]
[1725067727312,0.12639455,59447.0,59437.0,0.3204]
[1725067727313,0.02639455,59447.0,59442.0,0.01196016]
[1725067727524,0.11775,59448.0,59443.0,0.117759]
[1725067727763,0.1,59449.0,59443.0,0.117759]
[1725067727764,0.217748,59449.0,59444.0,0.117757]
[1725067727983,0.11775,59448.0,59443.0,0.01195312]
[1725067728205,0.11775,59448.0,59445.0,0.01193905]
[1725067728413,0.11775,59448.0,59444.0,0.01194608]
[1725067728653,0.11775,59448.0,59446.0,0.01193201]
[1725067728890,0.11775,59448.0,59445.0,0.01193905]
[1725067729111,0.14414039,59448.0,59447.0,0.01192498]
[1725067729337,0.24414039,59448.0,59446.0,0.01193201]
[1725067729560,0.14414039,59448.0,59445.0,0.005]
[1725067729775,0.14414039,59448.0,59447.0,0.01192498]
[1725067729972,0.14414039,59448.0,59446.0,0.01193201]
[1725067730240,0.14414039,59448.0,59445.0,0.002]
[1725067730682,0.02639039,59448.0,59447.0,0.01192498]
[1725067730888,0.217748,59449.0,59446.0,0.01193201]
[1725067731093,0.217748,59449.0,59447.0,0.01192498]
[1725067731554,0.217748,59449.0,59447.0,0.003]
[1725067732432,0.217748,59449.0,59447.0,0.001]
[1725067732839,0.217748,59449.0,59447.0,0.003]
[1725067733672,0.117749,59448.0,59447.0,0.003]
[1725067733903,0.217749,59448.0,59447.0,0.003]
[1725067734146,0.217749,59448.0,59447.0,0.01492498]
[1725067734359,0.217749,59448.0,59447.0,0.003]
[1725067734360,0.1,59448.0,59447.0,0.003]
[1725067734542,0.117749,59448.0,59443.0,0.235518]
[1725067734783,0.117749,59448.0,59447.0,0.01392498]
[1725067734988,0.117749,59448.0,59447.0,0.005]
[1725067735201,0.117749,59448.0,59447.0,0.01692498]
[1725067735427,0.117749,59448.0,59447.0,0.005]
[1725067735636,0.117749,59448.0,59447.0,0.002]
[1725067735820,0.117749,59448.0,59447.0,0.01392498]
[1725067736717,0.675148,59448.0,59447.0,0.01392498]
[1725067737153,0.675148,59448.0,59447.0,0.002]
[1725067737572,0.675148,59448.0,59447.0,0.005]
[1725067739737,0.675148,59448.0,59447.0,0.01692498]
[1725067739738,0.911465,59448.0,59447.0,0.01692498]
[1725067739957,0.911465,59448.0,59447.0,0.005]
[1725067740810,0.93785584,59448.0,59447.0,0.005]
[1725067741431,0.6768671,59448.0,59447.0,0.005]
[1725067741639,0.7946171,59448.0,59447.0,0.005]
[1725067745512,0.74638664,59448.0,59447.0,0.005]
[1725067746780,0.61595684,59448.0,59447.0,0.005]
[1725067752120,0.61595684,59448.0,59447.0,0.0058998]
[1725067755845,0.61595684,59448.0,59447.0,0.01793227]
[1725067758959,0.57550088,59448.0,59447.0,0.01793227]
[1725067759180,0.60189147,59448.0,59447.0,0.01793227]
[1725067764415,0.60270947,59448.0,59447.0,0.01793227]
[1725067765752,0.83820847,59448.0,59447.0,0.01793227]
[1725067765990,0.88210847,59448.0,59447.0,0.01793227]
[1725067766445,0.88210847,59448.0,59447.0,0.0058998]
[1725067769392,0.88210847,59448.0,59447.0,0.01793227]
[1725067769596,0.90510847,59448.0,59447.0,0.0058998]
[1725067769799,0.90510847,59448.0,59447.0,0.01793227]
[1725067770017,0.90510847,59448.0,59447.0,0.0058998]
[1725067770209,0.90510847,59448.0,59447.0,0.01793227]
[1725067770411,0.90510847,59448.0,59447.0,0.0058998]
[1725067770613,0.90510847,59448.0,59447.0,0.01793227]
[1725067770818,0.90510847,59448.0,59447.0,0.0058998]
[1725067771030,0.90510847,59448.0,59447.0,0.01793227]
[1725067771238,0.90510847,59448.0,59447.0,0.0058998]
[1725067771661,0.86120847,59448.0,59447.0,0.01793227]
[1725067772533,0.86120847,59448.0,59447.0,0.20846966]
[1725067773213,0.86120847,59448.0,59447.0,0.20849966]
[1725067773435,0.60270947,59448.0,59447.0,0.20849966]
[1725067773900,0.60270947,59448.0,59447.0,0.15793227]
[1725067774375,0.60270947,59448.0,59447.0,0.53166444]
[1725067775240,0.60270947,59448.0,59447.0,0.53163766]
[1725067777194,0.60270947,59448.0,59447.0,0.60749101]
[1725067777398,0.60270947,59448.0,59447.0,0.53163766]
[1725067779074,0.62570947,59448.0,59447.0,0.53163766]
[1725067780332,0.62570947,59448.0,59447.0,0.63276391]
[1725067780555,0.62570947,59448.0,59447.0,0.53163766]
[1725067781909,0.02720859,59448.0,59447.0,0.64938866]
[1725067782342,0.02720859,59448.0,59447.0,0.88489166]
[1725067782968,0.02720859,59448.0,59447.0,1.01129947]
[1725067783388,0.02720859,59448.0,59447.0,0.88489166]
[1725067785119,0.02720859,59448.0,59447.0,0.64937683]
[1725067785574,0.02720859,59448.0,59447.0,0.77581632]
[1725067785787,0.02720859,59448.0,59447.0,0.64937683]
[1725067788472,0.02720859,59448.0,59447.0,0.77577692]
[1725067788686,0.02720859,59448.0,59447.0,0.64937683]
[1725067789828,0.02720859,59448.0,59447.0,0.77576459]
[1725067790260,0.02720859,59448.0,59447.0,0.77575287]
[1725067790469,0.02720859,59448.0,59447.0,0.65800187]
[1725067791194,0.02720859,59448.0,59447.0,0.53161281]
[1725067791607,0.02720859,59448.0,59447.0,0.6327178]
[1725067791832,0.38045659,59448.0,59447.0,0.6327178]
[1725067795829,0.38045659,59448.0,59447.0,0.4927178]
[1725067796298,0.235497,59449.0,59447.0,0.01793227]
[1725067796781,0.117749,59448.0,59447.0,0.01793227]
[1725067797223,0.117749,59448.0,59447.0,0.01593227]
[1725067797438,0.117749,59448.0,59447.0,0.01293227]
[1725067797656,0.117749,59448.0,59447.0,0.01693227]
[1725067797879,0.117749,59448.0,59447.0,0.01593227]
[1725067798110,0.117749,59448.0,59447.0,0.01493227]
[1725067798768,0.117749,59448.0,59447.0,0.46445664]
[1725067799241,0.117749,59448.0,59447.0,0.0907594]
[1725067799462,0.117749,59448.0,59447.0,0.0947594]
[1725067799909,0.144139,59448.0,59447.0,0.46844943]
[1725067800203,0.144139,59448.0,59447.0,0.0947594]
[1725067800435,0.02639,59448.0,59447.0,0.46845106]
[1725067800904,0.100818,59449.0,59447.0,0.46845106]
[1725067800905,0.218567,59449.0,59447.0,0.46845106]
[1725067801134,0.218567,59449.0,59447.0,0.0947594]
[1725067801372,0.218567,59449.0,59447.0,0.01893227]
[1725067801373,0.117749,59448.0,59447.0,0.01893227]
[1725067802051,0.117749,59448.0,59447.0,0.01693227]
[1725067802270,0.117749,59448.0,59447.0,0.01793227]
[1725067802501,0.117749,59448.0,59447.0,0.0937594]
[1725067802720,0.117749,59448.0,59447.0,0.0897594]
[1725067802945,0.117749,59448.0,59447.0,0.0927594]
[1725067803628,0.117749,59448.0,59447.0,0.01393227]
[1725067803888,0.117749,59448.0,59447.0,0.09375428]
[1725067804105,0.117749,59448.0,59447.0,0.09275428]
[1725067804568,0.117749,59448.0,59447.0,0.09475428]
[1725067805669,0.353248,59448.0,59447.0,0.09475428]
[1725067806330,0.353248,59448.0,59447.0,0.4937223]
[1725067808595,0.353248,59448.0,59447.0,0.49372603]
[1725067810634,0.353248,59448.0,59447.0,0.48772603]
[1725067810855,0.37963817,59448.0,59447.0,0.48972603]
[1725067811303,0.37963817,59448.0,59447.0,0.49072603]
[1725067811752,0.37963817,59448.0,59447.0,0.48972603]
[1725067811964,0.38045617,59448.0,59447.0,0.49172603]
[1725067812217,0.38045617,59448.0,59447.0,0.48972603]
[1725067812430,0.38045617,59448.0,59447.0,0.49272603]
[1725067812656,0.87445417,59448.0,59447.0,0.39162939]
[1725067812880,0.87445417,59448.0,59447.0,0.38862939]
[1725067813106,0.87445417,59448.0,59447.0,0.46446276]
[1725067813323,0.87445417,59448.0,59447.0,0.46846276]
[1725067813538,0.87445417,59448.0,59447.0,0.01893227]
[1725067813759,0.87445417,59448.0,59447.0,0.0694929]
[1725067813993,0.87445417,59448.0,59447.0,0.01893227]
[1725067816526,0.02720817,59448.0,59447.0,0.49375541]
[1725067816741,0.000818,59448.0,59447.0,1.30780542]
[1725067816957,0.000818,59448.0,59447.0,1.77879142]
[1725067817211,0.000818,59449.0,59448.0,0.629507]
[1725067817446,0.000818,59449.0,59448.0,1.84443916]
[1725067817662,0.000818,59449.0,59448.0,1.87818068]
[1725067818359,0.000818,59449.0,59448.0,1.87792588]
[1725067819451,0.000818,59449.0,59448.0,1.86527468]
[1725067819911,0.000818,59449.0,59448.0,1.87927468]
[1725067820125,0.000818,59449.0,59448.0,1.89327468]
[1725067821235,0.027201,59449.0,59448.0,1.89327468]
[1725067823640,0.027201,59449.0,59448.0,0.7980906]
[1725067824590,0.027201,59449.0,59448.0,0.5148316]
[1725067824810,0.000818,59449.0,59448.0,0.5148316]
[1725067825031,0.000818,59449.0,59448.0,0.65490661]
[1725067825252,0.000818,59449.0,59448.0,0.5288316]
[1725067825476,0.000818,59449.0,59448.0,0.7643306]
[1725067825742,0.000818,59449.0,59448.0,0.7503306]
[1725067825987,0.000818,59449.0,59448.0,0.7643306]
[1725067826633,0.000818,59449.0,59448.0,0.89040561]
[1725067827098,0.000818,59449.0,59448.0,0.7643306]
[1725067827309,0.000818,59449.0,59448.0,0.89040774]
[1725067827743,0.000818,59449.0,59448.0,0.7643306]
[1725067827966,0.000818,59449.0,59448.0,0.76439962]
[1725067828419,0.000818,59449.0,59448.0,1.32139862]
[1725067831361,0.02720282,59449.0,59448.0,1.32139862]
[1725067832503,0.02720282,59449.0,59448.0,1.35515862]
[1725067833417,0.02720282,59449.0,59448.0,0.66440062]
[1725067833647,0.02720282,59449.0,59448.0,0.89989962]
[1725067834078,0.235466,59457.0,59449.0,0.235494]
[1725067834331,0.117736,59455.0,59451.0,0.117743]
[1725067834562,0.235459,59459.0,59452.0,0.117741]
[1725067834563,0.117733,59457.0,59452.0,0.117741]
[1725067834758,0.117734,59456.0,59452.0,0.12722804]
[1725067835189,0.235459,59459.0,59452.0,0.12722804]
[1725067835444,0.117732,59457.0,59452.0,0.12722804]
[1725067837208,0.117732,59457.0,59452.0,0.14122804]
[1725067837414,0.117732,59457.0,59452.0,0.15522804]
[1725067837626,0.117734,59456.0,59452.0,0.03748704]
[1725067837839,0.117734,59456.0,59452.0,0.15522804]
[1725067838565,0.117734,59456.0,59452.0,0.14122804]
[1725067839070,0.117734,59456.0,59452.0,0.15522804]
[1725067839564,0.117734,59456.0,59452.0,0.14122804]
[1725067839786,0.117734,59456.0,59452.0,0.15522804]
[1725067842081,0.117732,59457.0,59452.0,0.15522804]
[1725067842321,0.023,59458.0,59452.0,0.03748704]
[1725067842572,0.117738,59454.0,59452.0,0.03748704]
[1725067843021,0.117738,59454.0,59452.0,0.00948704]
[1725067843239,0.117738,59454.0,59452.0,0.02348704]
[1725067843457,0.1441233,59454.0,59452.0,0.028]
[1725067843664,0.1441233,59454.0,59453.0,0.00948235]
[1725067844287,0.1441233,59454.0,59452.0,0.014]
[1725067844483,0.1441233,59454.0,59453.0,0.00948235]
[1725067844964,0.1441233,59454.0,59449.0,0.117747]
[1725067845176,0.1441233,59454.0,59453.0,0.00948235]
[1725067845391,0.1441233,59454.0,59452.0,0.014]
[1725067845607,0.1441233,59454.0,59453.0,0.00948235]
[1725067846101,0.1441233,59454.0,59453.0,0.028]
[1725067846294,0.1441233,59454.0,59453.0,0.03748235]
[1725067846519,0.1441233,59454.0,59453.0,0.02348235]
[1725067847340,0.1441233,59454.0,59453.0,0.03748235]
[1725067847554,0.1449413,59454.0,59453.0,0.03748235]
[1725067848640,0.80499824,59454.0,59453.0,0.03748235]
[1725067848865,1.06347424,59454.0,59453.0,0.028]
[1725067849311,1.06347424,59454.0,59453.0,0.014]
[1725067849725,1.16347424,59454.0,59453.0,0.023]
[1725067849966,1.16347424,59454.0,59453.0,0.009]
[1725067850419,0.117747,59449.0,59448.0,0.0008998]
[1725067850847,0.117747,59449.0,59448.0,0.01040559]
[1725067851775,0.353242,59449.0,59448.0,0.01040559]
[1725067853340,0.353242,59449.0,59448.0,0.02140559]
[1725067853967,0.353242,59449.0,59448.0,0.03540559]
[1725067854442,0.235491,59451.0,59448.0,0.03540559]
[1725067855088,0.353242,59449.0,59448.0,0.02440559]
[1725067855528,0.353242,59449.0,59448.0,0.03840559]
[1725067856222,0.353242,59449.0,59448.0,0.02440559]
[1725067856710,0.353242,59449.0,59448.0,0.03640559]
[1725067856934,0.117747,59449.0,59448.0,0.02440559]
[1725067857375,0.117747,59449.0,59448.0,0.03840559]
[1725067858340,0.235481,59453.0,59448.0,0.03840559]
[1725067858567,0.117747,59449.0,59448.0,0.03840559]
[1725067859237,0.117747,59449.0,59448.0,0.02440559]
[1725067859689,0.117747,59449.0,59448.0,0.03440559]
[1725067859900,0.235491,59451.0,59448.0,0.03440559]
[1725067859901,0.117746,59450.0,59448.0,0.03440559]
[1725067860111,0.117747,59449.0,59448.0,0.02440559]
[1725067861481,0.1272033,59454.0,59450.0,0.117744]
[1725067861727,0.1,59453.0,59452.0,0.117742]
[1725067861934,0.1,59453.0,59452.0,0.40366319]
[1725067862166,0.1,59453.0,59452.0,0.41315023]
[1725067862378,0.1,59453.0,59452.0,0.36271304]
[1725067862813,0.0272033,59454.0,59453.0,0.11774]
[1725067863234,0.0272033,59454.0,59453.0,0.17767342]
[1725067863447,0.0272033,59454.0,59453.0,0.32657342]
[1725067863896,0.0272033,59454.0,59453.0,0.27612235]
[1725067864149,0.0272033,59454.0,59453.0,0.32658026]
[1725067864372,0.0272033,59454.0,59453.0,0.27612235]
[1725067865301,0.0272033,59454.0,59453.0,0.45582235]
[1725067865969,0.0272033,59454.0,59453.0,0.47282235]
[1725067866456,0.0272033,59454.0,59453.0,0.54850861]
[1725067866886,0.0272033,59454.0,59453.0,0.92214842]
[1725067867092,0.0272033,59454.0,59453.0,0.84645866]
[1725067867303,0.0272033,59454.0,59453.0,0.5485454]
[1725067867765,0.0272033,59454.0,59453.0,0.92219065]
[1725067868016,0.0272033,59454.0,59453.0,0.92220761]
[1725067868231,0.0272033,59454.0,59453.0,0.54856236]
[1725067868473,0.0272033,59454.0,59453.0,0.94738328]
[1725067868695,0.0272033,59454.0,59453.0,0.84646827]
[1725067870459,0.0272033,59454.0,59453.0,0.97261204]
[1725067871574,0.0272033,59454.0,59453.0,0.84646827]
[1725067873863,0.0222033,59454.0,59453.0,0.84646999]
[1725067876997,0.0222033,59454.0,59453.0,1.31742999]
[1725067877491,0.000818,59454.0,59453.0,1.31742999]
[1725067877925,0.000818,59454.0,59453.0,1.30842999]
[1725067878348,0.000818,59454.0,59453.0,1.30942999]
[1725067878790,0.000818,59454.0,59453.0,1.31341241]
[1725067880831,0.000818,59454.0,59453.0,1.32641241]
[1725067883278,0.000818,59454.0,59453.0,1.59565241]
[1725067883495,0.000818,59454.0,59453.0,1.59563134]
[1725067883964,0.000818,59454.0,59453.0,1.59763134]
[1725067884197,0.000818,59454.0,59453.0,1.58463134]
[1725067884444,0.000818,59454.0,59453.0,2.27320411]
[1725067884673,0.118532,59467.0,59453.0,2.27320411]
[1725067884674,0.1,59466.0,59463.0,0.1731]
[1725067884924,0.117713,59467.0,59464.0,0.20289885]
[1725067885131,0.1,59466.0,59464.0,0.20289885]
[1725067885576,0.1,59466.0,59464.0,0.12714878]
[1725067886029,0.1,59466.0,59464.0,0.13814878]
[1725067886251,0.11771,59468.0,59464.0,0.13814878]
[1725067886252,0.1,59467.0,59464.0,0.13814878]
[1725067886473,0.1,59467.0,59466.0,0.05049167]
[1725067886902,0.12638233,59467.0,59466.0,0.05991308]
[1725067887823,0.02638233,59467.0,59466.0,0.05991308]
[1725067888085,0.02638233,59467.0,59466.0,0.17762708]
[1725067888311,0.02638233,59467.0,59466.0,0.08191308]
[1725067888529,0.02638233,59467.0,59466.0,0.43505508]
[1725067888971,0.02638233,59467.0,59466.0,0.08191308]
[1725067889187,0.02638233,59467.0,59466.0,0.19962708]
[1725067890788,0.02638233,59467.0,59466.0,0.67048308]
[1725067891004,0.02638233,59467.0,59466.0,0.70424308]
[1725067891220,0.02638233,59467.0,59466.0,0.65375141]
[1725067891882,0.02638233,59467.0,59466.0,1.01629598]
[1725067892113,0.02638233,59467.0,59466.0,1.25472398]
[1725067892333,0.02638233,59467.0,59466.0,1.35572407]
[1725067892543,0.02638233,59467.0,59466.0,1.43892398]
[1725067893431,0.02638233,59467.0,59466.0,1.58531402]
[1725067894107,0.02638233,59467.0,59466.0,1.57131402]
[1725067894574,0.02638233,59467.0,59466.0,1.58531402]
[1725067895050,0.02638233,59467.0,59466.0,1.57631402]
[1725067895267,0.02638233,59467.0,59466.0,1.59031402]
[1725067896157,0.02638233,59467.0,59466.0,1.59231402]
[1725067897040,0.02638233,59467.0,59466.0,1.5922915]
[1725067897259,1e-08,59467.0,59466.0,1.5922915]
[1725067897491,0.00818,59473.0,59472.0,0.62227]
[1725067897770,0.00818,59473.0,59472.0,1.26672623]
[1725067897983,0.00818,59473.0,59472.0,1.51152352]
[1725067898636,0.00818,59473.0,59472.0,1.41077938]
[1725067898858,0.00818,59473.0,59472.0,1.66718338]
[1725067899576,0.00818,59473.0,59472.0,1.67718338]
[1725067900686,0.00818,59473.0,59472.0,1.69118338]
[1725067900904,0.00818,59473.0,59472.0,1.67718338]
[1725067901170,0.03455484,59473.0,59472.0,1.67718338]
[1725067901390,0.03455484,59473.0,59472.0,1.69118338]
[1725067903469,0.03455484,59473.0,59472.0,1.67718338]
[1725067903682,0.50265967,59495.0,59491.0,0.117664]
[1725067903905,0.1,59494.0,59491.0,0.117664]
[1725067904366,0.1,59494.0,59492.0,0.0092996]
[1725067905245,0.1,59495.0,59492.0,0.0092996]
[1725067905489,0.217657,59495.0,59492.0,0.0092996]
[1725067905906,0.1,59495.0,59492.0,0.1269616]
[1725067906118,0.1,59496.0,59492.0,0.1269616]
[1725067906368,0.217655,59496.0,59492.0,0.1269616]
[1725067906597,0.217655,59496.0,59492.0,0.1359616]
[1725067906826,0.217655,59496.0,59492.0,0.0282996]
[1725067907049,0.117656,59495.0,59492.0,0.0282996]
[1725067907290,0.1,59494.0,59492.0,0.0272996]
[1725067907511,0.1,59494.0,59492.0,0.0092996]
[1725067907724,0.29446,59493.0,59492.0,0.0182996]
[1725067907932,0.39446,59493.0,59492.0,0.0262996]
[1725067908175,0.39446,59493.0,59492.0,0.0092996]
[1725067908389,0.39446,59493.0,59492.0,0.0202996]
[1725067908390,0.4208306,59493.0,59492.0,0.0202996]
[1725067908603,0.4208306,59493.0,59492.0,0.022]
[1725067908805,0.4208306,59493.0,59492.0,0.0312996]
[1725067909520,0.8922906,59493.0,59492.0,0.0312996]
[1725067909730,1.1506116,59493.0,59492.0,0.022]
[1725067910166,1.1506116,59493.0,59492.0,0.011]
[1725067910381,0.117677,59485.0,59482.0,0.50296]
[1725067910594,0.117675,59486.0,59482.0,0.620641]
[1725067910826,0.117675,59486.0,59484.0,0.03376]
[1725067911048,0.235334,59490.0,59484.0,0.03376]
[1725067911049,0.117672,59487.0,59484.0,0.03376]
[1725067911275,0.117672,59487.0,59485.0,0.00933238]
[1725067911508,0.117672,59487.0,59486.0,0.03376]
[1725067911734,0.235326,59492.0,59486.0,0.0430877]
[1725067911960,0.25916008,59493.0,59486.0,0.0430877]
[1725067912234,0.35299,59492.0,59486.0,0.1607607]
[1725067912444,0.117665,59491.0,59486.0,0.1607607]
[1725067913104,0.117667,59490.0,59486.0,0.0430877]
[1725067913800,0.117667,59490.0,59485.0,0.014]
[1725067914040,0.117667,59490.0,59487.0,0.0116526]
[1725067914247,0.117667,59490.0,59486.0,0.05941963]
[1725067914471,0.117667,59490.0,59488.0,0.01164558]
[1725067914665,0.117667,59490.0,59486.0,0.06176]
[1725067914666,0.117667,59490.0,59487.0,0.0116526]
[1725067914876,0.117667,59490.0,59489.0,0.04539855]
[1725067915107,0.117667,59490.0,59489.0,0.03376]
[1725067915321,0.117667,59490.0,59489.0,0.01163855]
[1725067915540,0.117667,59490.0,59487.0,0.012]
[1725067916656,0.117668,59489.0,59486.0,0.03376]
[1725067916871,0.117668,59489.0,59487.0,0.014]
[1725067917084,0.117668,59489.0,59487.0,0.0256526]
[1725067917720,0.117668,59489.0,59487.0,0.0116526]
[1725067917951,0.001,59489.0,59487.0,0.0246526]
[1725067918171,0.118668,59489.0,59487.0,0.0246526]
[1725067918396,0.117668,59489.0,59487.0,0.0246526]
[1725067918854,0.117668,59489.0,59487.0,0.0116526]
[1725067919699,0.118668,59489.0,59487.0,0.0246526]
[1725067920154,0.117668,59489.0,59487.0,0.0116526]
[1725067920574,0.118668,59489.0,59487.0,0.0126526]
[1725067920792,0.118668,59489.0,59487.0,0.0256526]
[1725067921465,0.118668,59489.0,59487.0,0.0265524]
[1725067923470,0.118668,59489.0,59488.0,0.1435]
[1725067923930,0.118668,59489.0,59488.0,0.15514558]
[1725067924178,0.001,59489.0,59488.0,0.15514558]
[1725067924408,0.117667,59490.0,59488.0,0.15514558]
[1725067924641,0.001,59489.0,59488.0,0.16714558]
[1725067924857,0.001,59489.0,59488.0,0.18014558]
[1725067926470,0.117667,59490.0,59488.0,0.16814558]
[1725067926665,0.54600734,59489.0,59488.0,0.02464558]
[1725067926946,0.54600734,59489.0,59488.0,0.03664558]
[1725067926947,0.78134434,59489.0,59488.0,0.03664558]
[1725067927152,0.777142,59489.0,59488.0,0.025]
[1725067927377,0.777142,59489.0,59488.0,0.013]
[1725067927621,0.588352,59488.0,59487.0,0.0008998]
[1725067930108,0.353011,59488.0,59487.0,0.0125524]
[1725067930327,0.353011,59488.0,59487.0,0.0265524]
[1725067930980,0.354011,59488.0,59487.0,0.0255524]
[1725067931419,0.353011,59488.0,59487.0,0.0255524]
[1725067932519,0.353011,59488.0,59487.0,0.07583445]
[1725067932952,0.353011,59488.0,59487.0,0.08683445]
[1725067932953,0.354011,59488.0,59487.0,0.08683445]
[1725067933648,0.354011,59488.0,59487.0,0.08693652]
[1725067934359,0.11867,59488.0,59487.0,0.08693652]
[1725067934571,0.001,59488.0,59487.0,0.0365524]
[1725067935707,0.001,59488.0,59487.0,0.11215288]
[1725067935922,0.001,59488.0,59487.0,0.48559047]
[1725067936150,0.001,59488.0,59487.0,0.48559096]
[1725067936354,0.001,59488.0,59487.0,0.48559155]
[1725067936560,0.001,59488.0,59487.0,0.40999106]
[1725067938321,0.0273718,59488.0,59487.0,0.40999106]
[1725067938536,0.0273718,59488.0,59487.0,0.53599187]
[1725067939334,0.0273718,59488.0,59487.0,0.40999106]
[1725067939546,0.0273718,59488.0,59487.0,0.53599187]
[1725067939771,0.0273718,59488.0,59487.0,0.40999106]
[1725067939992,0.0273718,59488.0,59487.0,0.5361917]
[1725067940623,0.0273718,59488.0,59487.0,0.40999106]
[1725067944363,0.001,59488.0,59487.0,1.61448479]
[1725067944600,0.001,59488.0,59487.0,0.76300806]
[1725067944801,0.001,59488.0,59487.0,0.75800806]
[1725067945006,0.001,59488.0,59487.0,0.75045566]
[1725067945210,0.001,59488.0,59487.0,0.75043903]
[1725067947302,0.001818,59488.0,59487.0,0.75043903]
[1725067947956,0.02818911,59488.0,59487.0,0.75043903]
[1725067950777,0.02818911,59488.0,59487.0,0.39742203]
[1725067950778,0.14585911,59488.0,59487.0,0.39742203]
[1725067950979,0.02818911,59488.0,59487.0,0.39742203]